bitfinex-derivatives/quotes_ETHF0:USTF0_20250428
["timestamp","ask_amount","ask_price","bid_price","bid_amount"]
[1745822331601,3.683,1805.7,1805.6,0.77511]
[1745822332098,3.683,1805.7,1805.6,3.22261]
[1745822332695,5.3832,1805.7,1805.6,3.22261]
[1745822333804,5.3832,1805.7,1805.6,0.77511]
[1745822335506,6.15827,1805.7,1805.5,3.98292]
[1745822335706,1.6408,1805.6,1805.5,3.98292]
[1745822336208,1.6408,1805.6,1805.4,1.7133]
[1745822336405,0.7958,1805.5,1805.4,0.77519]
[1745822337103,2.4366,1805.5,1805.4,0.77519]
[1745822337909,3.21176,1805.5,1805.3,4.15552]
[1745822338208,1.6408,1805.4,1805.3,4.15552]
[1745822339508,1.6408,1805.4,1805.2,3.2078]
[1745822339805,6.89843,1805.4,1805.2,3.2078]
[1745822340110,0.77528,1805.2,1805.1,44.0378]
[1745822341312,1.62438,1805.2,1805.1,44.0378]
[1745822341815,0.77537,1805.0,1804.9,3.2078]
[1745822342204,6.04076,1805.1,1804.9,3.98321]
[1745822342497,6.04076,1805.1,1805.0,40.8]
[1745822342810,5.2654,1805.1,1805.0,41.57537]
[1745822343013,3.683,1805.2,1805.0,43.3278]
[1745822343208,3.683,1805.3,1805.1,2.4654]
[1745822343413,4.45828,1805.3,1805.2,1.6754]
[1745822343714,0.77528,1805.2,1805.0,42.42776]
[1745822344011,1.5824,1805.1,1805.0,44.10316]
[1745822344205,0.77528,1805.2,1805.0,42.42776]
[1745822344404,2.45948,1805.2,1805.0,42.42776]
[1745822344814,1.6842,1805.2,1805.0,41.6524]
[1745822345110,2.45953,1805.1,1805.0,40.8]
[1745822345298,2.45953,1805.1,1805.0,41.6336]
[1745822345797,1.6842,1805.1,1805.0,41.6336]
[1745822345998,2.45953,1805.1,1805.0,41.6336]
[1745822346812,2.45953,1805.1,1805.0,40.8]
[1745822347712,1.6842,1805.1,1804.7,4.0414]
[1745822348009,0.77546,1804.8,1804.7,3.2078]
[1745822348403,2.35995,1804.9,1804.7,4.8129]
[1745822348611,2.35995,1804.9,1804.7,4.0374]
[1745822348811,0.77546,1804.8,1804.7,4.0374]
[1745822349113,2.35993,1804.9,1804.7,4.8129]
[1745822350613,2.35993,1804.9,1804.7,4.0374]
[1745822350813,0.77546,1804.8,1804.7,4.0374]
[1745822351010,2.43376,1804.8,1804.7,4.0374]
[1745822351213,2.43376,1804.8,1804.7,3.2078]
[1745822351507,0.7755,1804.7,1804.6,0.03816]
[1745822351711,13.686,1804.7,1804.6,0.03816]
[1745822351906,12.0058,1804.7,1804.6,0.03816]
[1745822352215,12.7975,1804.7,1804.6,0.03816]
[1745822354705,6.9095,1804.7,1804.6,0.03816]
[1745822355312,0.77563,1804.4,1804.3,40.8]
[1745822355506,0.77563,1804.4,1804.2,3.2078]
[1745822355507,3.684,1804.4,1804.1,1.6594]
[1745822355711,3.3252,1804.3,1804.0,3.2078]
[1745822355913,0.77576,1804.1,1804.0,3.2078]
[1745822356720,4.47876,1804.1,1804.0,3.2078]
[1745822357216,3.703,1804.1,1804.0,3.2078]
[1745822357412,3.703,1804.1,1804.0,3.9836]
[1745822357719,4.47876,1804.1,1804.0,3.2078]
[1745822357917,3.703,1804.1,1804.0,3.9836]
[1745822358119,3.703,1804.1,1804.0,3.2078]
[1745822358619,4.47876,1804.1,1804.0,3.2078]
[1745822358916,6.13106,1804.1,1804.0,3.2078]
[1745822359217,6.13106,1804.1,1803.5,1.94]
[1745822359218,0.77589,1803.9,1803.7,3.2078]
[1745822359417,0.77589,1803.9,1803.7,3.98373]
[1745822359619,0.77589,1803.9,1803.8,1.6444]
[1745822359815,0.77589,1803.8,1803.7,3.2078]
[1745822360017,5.324,1803.8,1803.4,5.7182]
[1745822360206,0.776,1803.6,1803.4,6.49425]
[1745822360411,5.888,1804.0,1803.7,0.77592]
[1745822360613,3.703,1804.0,1803.9,0.77583]
[1745822361123,3.703,1804.0,1803.9,4.04933]
[1745822362918,3.703,1804.0,1803.9,3.2735]
[1745822363619,3.703,1804.0,1803.9,4.04934]
[1745822363813,3.703,1804.0,1803.9,3.2735]
[1745822364114,4.4788,1804.0,1803.9,3.2735]
[1745822365618,3.703,1804.0,1803.9,4.04934]
[1745822365819,4.47974,1804.2,1804.0,0.7758]
[1745822366017,4.47974,1804.2,1804.1,1.6748]
[1745822366413,4.47974,1804.2,1804.1,42.4748]
[1745822369422,6.12234,1804.2,1804.1,42.4748]
[1745822369621,6.12234,1804.2,1804.1,40.8]
[1745822371022,0.77576,1804.1,1804.0,3.2078]
[1745822371321,0.77584,1803.9,1803.8,4.8282]
[1745822371520,0.77593,1803.7,1803.6,3.2078]
[1745822371813,2.468,1803.8,1803.4,0.8095]
[1745822372019,0.77601,1803.5,1803.4,0.8095]
[1745822372220,4.48,1803.6,1803.4,0.8095]
[1745822372420,0.77601,1803.5,1803.4,0.8095]
[1745822372623,3.704,1803.6,1803.4,0.8095]
[1745822372814,4.47998,1803.6,1803.4,1.58554]
[1745822373015,0.77601,1803.5,1803.4,0.8095]
[1745822375223,4.48,1803.6,1803.4,0.8095]
[1745822375422,3.704,1803.6,1803.5,0.77601]
[1745822375721,3.704,1803.6,1803.5,3.98381]
[1745822375929,0.7759,1803.8,1803.6,0.77597]
[1745822376221,4.4799,1803.8,1803.6,0.77597]
[1745822376426,4.4799,1803.8,1803.7,0.7983]
[1745822377725,4.4799,1803.8,1803.7,4.0061]
[1745822377926,4.4799,1803.8,1803.7,3.2078]
[1745822378123,0.77597,1803.6,1803.5,3.2078]
[1745822381427,1.6719,1803.7,1803.4,3.2078]
[1745822381629,0.77601,1803.5,1803.4,3.2078]
[1745822381822,4.48101,1803.5,1803.4,40.8]
[1745822382027,6.13421,1803.5,1803.4,40.8]
[1745822382928,5.3582,1803.5,1803.4,40.8]
[1745822383124,3.705,1803.5,1803.4,41.6036]
[1745822383629,3.705,1803.5,1803.4,42.37966]
[1745822385531,4.48101,1803.5,1803.4,41.6036]
[1745822385826,6.19411,1803.5,1803.4,42.37966]
[1745822386023,5.4181,1803.5,1803.4,42.37966]
[1745822386229,3.705,1803.5,1803.4,42.37966]
[1745822387627,4.48101,1803.5,1803.4,42.37966]
[1745822387933,3.705,1803.5,1803.4,42.37966]
[1745822390337,3.705,1803.5,1803.4,44.07846]
[1745822396841,3.705,1803.5,1803.4,44.88376]
[1745822401244,9.574,1804.0,1803.9,0.77584]
[1745822402547,9.574,1804.0,1803.9,2.34754]
[1745822402850,3.686,1804.0,1803.9,2.34754]
[1745822403046,3.34368,1804.3,1804.1,0.77573]
[1745822403244,3.2078,1804.6,1804.0,1.5717]
[1745822403442,3.686,1804.6,1804.2,3.2078]
[1745822403644,1.7405,1804.5,1804.3,2.34735]
[1745822404250,1.7405,1804.5,1804.4,0.77563]
[1745822404549,1.7405,1804.5,1804.4,2.34733]
[1745822404744,1.7405,1804.5,1804.4,1.5717]
[1745822404947,2.51608,1804.5,1804.3,0.77564]
[1745822405140,1.7405,1804.5,1804.4,0.77563]
[1745822405946,25.0,2564.0,1804.3,1.6388]
[1745822405947,6.32403534,1805.0,1804.6,0.77554]
[1745822406243,2.5473017,1804.9,1804.7,0.7755]
[1745822406449,1.5923,1804.8,1804.7,0.7755]
[1745822406653,1.5923,1804.8,1804.7,2.4143]
[1745822406847,0.8628,1804.9,1804.8,0.77546]
[1745822407049,1.5923,1804.9,1804.8,2.41426]
[1745822407655,4.5562,1805.0,1804.9,0.77541]
[1745822407856,6.1485,1805.0,1804.9,1.6388]
[1745822408155,6.1485,1805.0,1804.8,0.77544]
[1745822408353,2.3805,1804.9,1804.6,40.8]
[1745822408655,2.35139,1804.8,1804.6,41.57554]
[1745822408851,5.2619,1804.7,1804.6,41.57554]
[1745822409053,5.2619,1804.7,1804.6,40.8]
[1745822409552,5.2619,1804.7,1804.6,41.57554]
[1745822410352,5.2619,1804.7,1804.6,40.8]
[1745822410653,3.686,1804.7,1804.6,41.57554]
[1745822410857,3.686,1804.7,1804.6,43.21744]
[1745822411553,3.686,1804.7,1804.6,40.8]
[1745822411951,5.4246,1804.7,1804.6,40.8]
[1745822412153,5.4246,1804.7,1804.6,41.57554]
[1745822412457,5.4246,1804.7,1804.6,40.8]
[1745822412952,6.2001,1804.7,1804.6,40.8]
[1745822415055,7.0363,1804.7,1804.6,40.8]
[1745822415356,5.4246,1804.7,1804.6,41.57554]
[1745822415557,3.686,1804.7,1804.6,41.57554]
[1745822416055,3.686,1804.7,1804.6,44.12064]
[1745822417360,3.686,1804.7,1804.6,43.3451]
[1745822417655,6.0934,1804.7,1804.6,42.4931]
[1745822418054,0.7756,1804.5,1804.3,4.0775]
[1745822418357,2.40747,1804.6,1804.4,0.77562]
[1745822418558,1.6319,1804.5,1804.4,2.40862]
[1745822418749,1.6319,1804.5,1804.3,4.85314]
[1745822418750,2.40748,1804.5,1804.3,4.85314]
[1745822418952,3.19318,1804.5,1804.3,4.85314]
[1745822419252,0.7857,1804.5,1804.4,41.57563]
[1745822419451,0.7857,1804.5,1804.4,43.20863]
[1745822419656,1.56128,1804.5,1804.4,40.8]
[1745822423159,0.7857,1804.5,1804.2,0.82]
[1745822423354,0.77567,1804.3,1804.2,1.5957]
[1745822423562,0.77567,1804.3,1804.2,43.206]
[1745822423856,4.5139,1804.4,1804.2,43.9817]
[1745822424057,0.77567,1804.3,1804.2,43.206]
[1745822424254,5.28956,1804.4,1804.2,43.206]
[1745822424454,4.5139,1804.4,1804.3,1.6518]
[1745822424761,4.46863,1804.4,1804.3,1.6518]
[1745822425260,4.46863,1804.4,1804.3,5.63527]
[1745822425261,3.693,1804.4,1804.3,5.63527]
[1745822425462,3.693,1804.4,1804.3,6.43627]
[1745822425864,0.77552,1804.7,1804.5,0.77556]
[1745822426055,0.77552,1804.7,1804.6,1.58724]
[1745822426256,3.693,1804.7,1804.6,1.58724]
[1745822427166,3.693,1804.7,1804.6,3.26284]
[1745822427362,0.77556,1804.6,1804.4,2.4873]
[1745822427662,4.46852,1804.7,1804.5,2.45116]
[1745822427964,3.693,1804.7,1804.6,2.45114]
[1745822428464,4.4685,1804.7,1804.6,2.45114]
[1745822429465,3.693,1804.7,1804.6,2.45114]
[1745822430363,2.51819,1804.8,1804.6,2.45114]
[1745822430564,2.51819,1804.8,1804.7,2.4929]
[1745822430762,0.77549,1804.8,1804.7,3.3087]
[1745822431065,3.693,1804.8,1804.7,4.08419]
[1745822431366,3.693,1804.8,1804.7,7.292]
[1745822432565,3.693,1804.9,1804.7,6.5165]
[1745822432758,3.693,1804.9,1804.8,2.46034]
[1745822432959,5.3424,1805.0,1804.8,1.6849]
[1745822433159,0.77541,1804.9,1804.8,1.6849]
[1745822434057,2.34891,1804.9,1804.8,1.6849]
[1745822434461,0.77546,1804.8,1804.7,4.8316]
[1745822434660,2.34896,1804.8,1804.7,0.808]
[1745822434860,3.19636,1804.8,1804.7,0.808]
[1745822435069,0.77544,1804.9,1804.7,1.58349]
[1745822435260,2.34894,1804.9,1804.7,1.58349]
[1745822435461,0.77546,1804.8,1804.7,2.43609]
[1745822435770,0.77546,1804.8,1804.7,0.808]
[1745822436069,0.7755,1804.7,1804.6,1.5944]
[1745822436371,5.2641,1804.7,1804.6,2.36994]
[1745822436671,5.2641,1804.7,1804.6,0.77554]
[1745822436867,4.4886,1804.7,1804.6,0.77554]
[1745822437056,5.2641,1804.7,1804.6,0.77554]
[1745822437262,6.8699,1804.7,1804.6,0.77554]
[1745822439070,6.8699,1804.7,1804.5,2.48636]
[1745822439463,6.8699,1804.7,1804.3,3.2078]
[1745822439464,9.3022,1804.7,1804.3,3.2078]
[1745822439677,0.77567,1804.3,1804.2,43.3489]
[1745822439971,0.77567,1804.3,1804.1,3.2078]
[1745822440272,1.6041,1804.2,1804.1,5.7679]
[1745822440470,1.6041,1804.2,1804.1,47.34366]
[1745822440670,0.77567,1804.3,1804.1,47.34366]
[1745822440671,5.26155,1804.4,1804.1,47.34366]
[1745822440868,6.86565,1804.4,1804.2,1.6967]
[1745822441069,0.77567,1804.3,1804.2,1.6967]
[1745822441269,1.6041,1804.3,1804.2,1.6967]
[1745822441573,2.37977,1804.3,1804.2,1.6967]
[1745822452272,0.77571,1804.2,1804.1,44.8712]
[1745822452472,0.77571,1804.2,1804.1,46.4691]
[1745822453578,6.1402,1804.4,1804.1,47.24484]
[1745822453776,0.77567,1804.3,1804.2,1.5979]
[1745822457884,3.2078,1804.3,1803.9,0.8372]
[1745822458083,1.6753,1804.2,1804.0,2.6011]
[1745822458284,4.45176,1804.1,1804.0,2.6011]
[1745822458583,4.45176,1804.1,1804.0,43.4011]
[1745822458784,6.12706,1804.1,1804.0,43.4011]
[1745822459083,6.12706,1804.1,1804.0,2.6011]
[1745822463982,5.3513,1804.1,1803.8,3.2078]
[1745822464187,0.77584,1803.9,1803.7,0.77593]
[1745822464379,0.77584,1803.9,1803.8,1.685]
[1745822464579,4.45184,1803.9,1803.8,42.485]
[1745822465085,3.676,1803.9,1803.8,43.26089]
[1745822465585,3.676,1803.9,1803.8,46.46869]
[1745822466396,5.888,1804.1,1803.8,9.8928]
[1745822466686,5.888,1804.1,1804.0,3.9836]
[1745822466887,6.66376,1804.1,1804.0,3.2078]
[1745822467188,6.66376,1804.1,1804.0,5.7535]
[1745822467484,8.24586,1804.1,1804.0,2.5457]
[1745822467685,9.93306,1804.1,1804.0,2.5457]
[1745822467883,9.1573,1804.1,1803.8,3.2078]
[1745822468086,0.77584,1803.9,1803.8,3.2078]
[1745822468385,4.45184,1803.9,1803.8,4.9404]
[1745822468582,0.77593,1803.7,1803.6,40.8]
[1745822468784,0.77597,1803.6,1803.5,0.8112]
[1745822468988,6.03407,1803.6,1803.5,2.5438]
[1745822469292,16.23836807,1803.6,1803.1,3.2078]
[1745822469491,5.88847247,1803.5,1803.1,3.98398]
[1745822469683,2.51926,1803.4,1803.2,1.6832]
[1745822469883,3.676,1803.3,1803.2,2.4944]
[1745822470088,3.676,1803.3,1803.2,3.27054]
[1745822470385,3.676,1803.3,1803.2,43.2944]
[1745822470785,3.676,1803.3,1803.2,44.07054]
[1745822470987,5.888,1803.6,1803.5,0.77601]
[1745822471291,6.8838,1803.7,1803.6,0.77597]
[1745822471697,3.676,1803.7,1803.6,0.77597]
[1745822472185,3.676,1803.7,1803.6,3.28087]
[1745822472384,62.213,1804.0,1803.9,0.77584]
[1745822472692,65.889,1804.0,1803.9,0.77584]
[1745822472893,65.889,1804.0,1803.7,4.9456]
[1745822473091,3.676,1804.0,1803.9,0.77584]
[1745822473485,3.676,1804.0,1803.8,3.34116]
[1745822473791,3.676,1804.0,1803.9,1.7378]
[1745822474185,3.676,1804.0,1803.9,2.51364]
[1745822474892,1.6725,1804.2,1803.9,1.7378]
[1745822475092,3.676,1804.2,1804.1,0.77573]
[1745822475493,3.676,1804.2,1804.1,1.7378]
[1745822476694,4.45171,1804.2,1804.1,1.7378]
[1745822476886,3.676,1804.2,1804.1,1.7378]
[1745822477086,5.3872,1804.2,1804.1,1.7378]
[1745822478000,5.3872,1804.2,1804.1,2.51356]
[1745822478391,5.3872,1804.2,1804.1,1.7378]
[1745822478996,3.676,1804.2,1804.1,2.51356]
[1745822480396,5.3359,1804.2,1804.1,2.51356]
[1745822480695,3.685,1804.6,1804.5,0.77558]
[1745822481295,3.685,1804.6,1804.5,2.48038]
[1745822481596,5.3449,1804.6,1804.5,2.48038]
[1745822481801,5.3449,1804.6,1804.5,1.7048]
[1745822482095,5.3449,1804.6,1804.4,44.0078]
[1745822482289,4.09548,1804.5,1804.4,44.0078]
[1745822482494,3.3199,1804.5,1804.4,44.0078]
[1745822483300,3.3199,1804.5,1804.2,3.31799]
[1745822483301,11.5277,1804.5,1804.0,4.0622]
[1745822483493,0.77568,1804.3,1804.0,4.83799]
[1745822483798,0.77568,1804.3,1804.1,40.8]
[1745822483799,5.3014,1804.2,1804.1,40.8]
[1745822484797,3.684,1804.2,1804.1,43.25762]
[1745822485803,3.684,1804.2,1804.1,42.4819]
[1745822486102,3.684,1804.2,1804.1,43.25766]
[1745822486598,3.684,1804.2,1804.1,42.4819]
[1745822487101,3.684,1804.2,1804.1,43.25766]
[1745822488298,4.45971,1804.2,1804.1,42.4819]
[1745822489404,3.684,1804.2,1804.1,43.25766]
[1745822490901,4.45971,1804.2,1804.1,42.4819]
[1745822491089,5.3341,1804.2,1804.1,43.25766]
[1745822492801,6.10981,1804.2,1804.1,42.4819]
[1745822493701,6.10981,1804.2,1804.1,43.25766]
[1745822494002,5.3341,1804.2,1804.1,43.25766]
[1745822494498,5.888,1804.5,1804.4,0.77563]
[1745822494698,3.684,1804.6,1804.5,0.77558]
[1745822495398,3.684,1804.6,1804.5,2.36668]
[1745822495799,5.316,1804.6,1804.5,2.36668]
[1745822497001,6.09154,1804.6,1804.5,1.5911]
[1745822497202,0.77558,1804.5,1804.4,1.6619]
[1745822497394,2.37588,1804.5,1804.4,1.6619]
[1745822497901,2.37588,1804.5,1804.4,42.4619]
[1745822498602,1.6003,1804.5,1804.4,43.23753]
[1745822498789,5.25267,1804.6,1804.4,44.85513]
[1745822498995,6.85297,1804.6,1804.5,1.6176]
[1745822499907,6.0774,1804.6,1804.5,1.6176]
[1745822500105,6.0774,1804.6,1804.5,2.39318]
[1745822500606,6.85294,1804.6,1804.5,1.6176]
[1745822500901,6.0774,1804.6,1804.5,1.6176]
[1745822501800,6.0774,1804.6,1804.4,41.5756]
[1745822502000,6.85295,1804.6,1804.4,44.1118]
[1745822502303,1.6558,1804.5,1804.4,43.308]
[1745822503302,3.684,1804.6,1804.5,0.77558]
[1745822503503,3.684,1804.6,1804.5,2.38228]
[1745822503703,1.616,1804.8,1804.7,0.7755]
[1745822503907,5.3,1804.8,1804.7,0.7755]
[1745822504100,6.07547,1804.8,1804.6,4.02261]
[1745822504300,1.616,1804.7,1804.6,4.02261]
[1745822505602,2.3915,1804.7,1804.6,3.2471]
[1745822505802,2.3915,1804.7,1804.5,3.98336]
[1745822506107,1.616,1804.6,1804.5,3.98338]
[1745822506306,3.18264,1804.6,1804.5,3.2078]
[1745822507101,2.4071,1804.6,1804.5,3.98338]
[1745822507307,2.4071,1804.6,1804.5,5.68848]
[1745822509810,1.616,1804.6,1804.5,5.68848]
[1745822514112,1.616,1804.6,1804.5,4.9129]
[1745822514515,2.39154,1804.6,1804.5,4.9129]
[1745822514723,1.616,1804.6,1804.5,4.9129]
[1745822515425,2.39154,1804.6,1804.5,4.9129]
[1745822517328,1.616,1804.6,1804.5,4.9129]
[1745822517622,2.39154,1804.6,1804.5,5.68848]
[1745822518425,1.616,1804.6,1804.5,5.68848]
[1745822518628,2.39154,1804.6,1804.5,5.68848]
[1745822520126,1.616,1804.6,1804.5,5.68848]
[1745822520624,10.4098,1804.8,1804.6,0.77551]
[1745822520825,11.18529,1804.8,1804.7,1.624]
[1745822521025,12.0993,1804.8,1804.7,2.4489]
[1745822521225,12.0993,1804.8,1804.7,3.2244]
[1745822521527,11.2615,1804.8,1804.7,3.2244]
[1745822522123,12.03696,1804.8,1804.7,3.2244]
[1745822522325,12.03696,1804.8,1804.7,2.4489]
[1745822523632,0.7755,1804.7,1804.6,0.77551]
[1745822523822,0.77554,1804.6,1804.5,5.6904]
[1745822524226,2.42954,1804.6,1804.5,5.6904]
[1745822525023,1.654,1804.6,1804.5,6.46598]
[1745822525328,2.42954,1804.6,1804.5,6.46598]
[1745822525627,1.654,1804.6,1804.5,6.46598]
[1745822526425,2.42954,1804.6,1804.5,6.46598]
[1745822526621,1.654,1804.6,1804.5,6.46598]
[1745822527231,2.38593,1804.7,1804.5,6.46598]
[1745822527529,3.96803,1804.7,1804.6,1.579]
[1745822528021,0.77554,1804.6,1804.5,4.77978]
[1745822528224,1.5821,1804.6,1804.5,4.77978]
[1745822528730,1.5821,1804.6,1804.5,6.35878]
[1745822531634,2.35764,1804.6,1804.5,3.2078]
[1745822531832,1.5821,1804.6,1804.5,3.98338]
[1745822533034,1.5821,1804.6,1804.5,6.54388]
[1745822534234,5.2481,1804.6,1804.5,6.54388]
[1745822535537,3.666,1804.6,1804.5,6.54388]
[1745822537039,3.666,1804.8,1804.7,0.7755]
[1745822537433,3.666,1804.8,1804.7,3.9833]
[1745822537730,3.666,1804.8,1804.7,4.8471]
[1745822538739,8.26369,1805.0,1804.8,0.77545]
[1745822538938,2.37569,1805.0,1804.9,1.6545]
[1745822539242,6.04169,1805.0,1804.9,1.6545]
[1745822542035,3.2078,1805.1,1804.9,2.42991]
[1745822542336,6.2011,1805.2,1805.0,0.77537]
[1745822542537,6.2011,1805.2,1805.0,3.25857]
[1745822542929,6.2011,1805.2,1805.1,0.77533]
[1745822543138,6.2011,1805.2,1805.1,3.22443]
[1745822545238,3.635,1805.2,1805.1,3.22443]
[1745822548343,3.635,1805.2,1805.1,6.43223]
[1745822550039,2.4706,1805.4,1805.2,0.77525]
[1745822550246,3.634,1805.3,1805.2,2.39495]
[1745822550445,5.888,1805.5,1805.4,0.7752]
[1745822550645,9.61416391,1805.5,1805.3,3.2327]
[1745822550845,11.90827,1805.5,1805.3,2.4575]
[1745822551039,3.279,1805.4,1805.3,3.23273]
[1745822551242,3.279,1805.4,1805.3,0.77523]
[1745822551541,3.279,1805.4,1805.3,41.57523]
[1745822554248,1.6111,1805.4,1805.3,41.57523]
[1745822554849,1.6111,1805.4,1805.3,42.37743]
[1745822555744,3.2078,1805.6,1805.3,41.6022]
[1745822555950,3.634,1805.5,1805.4,3.2098]
[1745822557041,3.634,1805.5,1805.4,2.4346]
[1745822557449,3.634,1805.5,1805.4,3.2098]
[1745822557648,5.3758,1805.5,1805.4,2.4346]
[1745822558150,7.1057,1805.5,1805.4,2.4346]
[1745822558349,7.1057,1805.5,1805.4,3.2098]
[1745822559753,7.88086,1805.5,1805.4,3.2098]
[1745822559955,0.7752,1805.4,1805.3,44.81]
[1745822560155,2.3465,1805.4,1805.3,44.78304]
[1745822560352,1.5713,1805.4,1805.3,44.78304]
[1745822561749,4.4983,1805.5,1805.4,0.7752]
[1745822561954,6.9689,1805.7,1805.6,0.77511]
[1745822562146,6.9689,1805.7,1805.5,2.35443]
[1745822562347,6.9689,1805.7,1805.6,0.77511]
[1745822562558,6.9689,1805.7,1805.6,2.35441]
[1745822564356,6.1353,1805.7,1805.6,2.35441]
[1745822565059,5.3356,1805.7,1805.6,2.35441]
[1745822568253,3.634,1806.0,1805.9,0.77495]
[1745822568453,5.3172,1806.0,1805.9,0.77495]
[1745822568952,1.6832,1806.0,1805.9,0.77498]
[1745822569153,5.3172,1806.0,1805.9,0.77498]
[1745822569356,5.3172,1806.0,1805.8,2.4922]
[1745822569860,5.3172,1806.0,1805.8,5.7]
[1745822570356,5.3172,1806.0,1805.9,2.41688]
[1745822570859,5.3172,1806.0,1805.9,1.6419]
[1745822571660,5.3172,1806.0,1805.9,2.41688]
[1745822572162,0.01375884,1806.2,1805.9,1.6419]
[1745822572359,6.05321,1806.1,1805.9,1.6419]
[1745822572664,1.6473,1806.0,1805.9,1.6419]
[1745822572961,1.6473,1806.0,1805.9,2.41688]
[1745822575761,2.42224,1806.0,1805.9,2.41688]
[1745822575956,2.42224,1806.0,1805.9,0.77498]
[1745822576158,0.77498,1805.9,1805.8,3.2078]
[1745822576359,4.01028,1805.9,1805.7,2.46626]
[1745822576554,3.2353,1805.9,1805.8,0.77503]
[1745822576761,9.519,1806.1,1806.0,0.77494]
[1745822577964,9.519,1806.1,1806.0,1.59394]
[1745822578152,5.888,1806.1,1806.0,2.45554]
[1745822578359,3.64475884,1806.2,1806.1,0.7749]
[1745822578555,3.64475884,1806.2,1806.1,2.4785]
[1745822581161,0.01375884,1806.2,1806.1,2.4785]
[1745822581457,9.52993536,1806.5,1806.3,0.7748]
[1745822581651,3.64193536,1806.5,1806.4,0.77477]
[1745822581851,3.64193536,1806.5,1806.3,0.7748]
[1745822582055,3.64193536,1806.5,1806.4,0.77477]
[1745822582262,3.64193536,1806.5,1806.3,4.17227]
[1745822582459,0.01193536,1806.5,1806.4,2.42257]
[1745822583150,0.78666536,1806.5,1806.4,0.0280707]
[1745822583350,0.78666536,1806.5,1806.2,3.2078]
[1745822583351,0.77481,1806.3,1806.2,3.2078]
[1745822583556,0.77489,1806.2,1805.9,0.77495]
[1745822583762,1.6489,1806.2,1806.0,0.77493]
[1745822584055,2.42376,1806.2,1806.1,40.8]
[1745822586166,6.8378,1806.3,1806.1,40.8]
[1745822586464,2.41595,1806.2,1806.1,40.8]
[1745822588462,2.50807302,1806.2,1806.1,40.8]
[1745822588661,2.41595,1806.2,1806.1,40.8]
[1745822589463,4.11235,1806.2,1806.1,40.8]
[1745822592262,4.20447368,1806.2,1806.1,40.8]
[1745822592469,0.77498,1805.9,1805.8,4.0382]
[1745822592671,6.8378,1806.0,1805.6,4.0248]
[1745822592969,0.77507,1805.7,1805.6,4.0248]
[1745822593267,4.40507,1805.7,1805.6,4.0248]
[1745822593475,6.03777,1805.7,1805.6,44.8248]
[1745822593668,6.03777,1805.7,1805.6,45.6962]
[1745822593970,6.03777,1805.7,1805.6,44.8792]
[1745822595171,6.03777,1805.7,1805.6,41.6714]
[1745822595468,6.03777,1805.7,1805.6,40.8]
[1745822596167,3.63,1805.7,1805.6,41.57511]
[1745822596365,3.63,1805.7,1805.6,44.00751]
[1745822598871,4.40507,1805.7,1805.6,43.2324]
[1745822599779,4.40507,1805.7,1805.6,42.4273]
[1745822600372,6.08547,1805.7,1805.6,42.4273]
[1745822601375,5.3104,1805.7,1805.6,42.4273]
[1745822601572,3.63,1805.7,1805.6,43.20241]
[1745822601872,3.63,1805.7,1805.6,46.41021]
[1745822602470,4.9363,1806.0,1805.6,45.6351]
[1745822602674,4.40498,1805.9,1805.8,0.77499]
[1745822602972,3.63,1805.9,1805.8,1.61619]
[1745822604070,5.89993536,1806.5,1805.8,9.049]
[1745822604272,0.01193536,1806.5,1806.3,0.77478]
[1745822604569,0.01193536,1806.5,1806.4,0.8412]
[1745822604768,1.68923536,1806.5,1806.4,0.8412]
[1745822604967,3.64193536,1806.5,1806.4,1.61597]
[1745822605162,3.64193536,1806.5,1806.4,0.8412]
[1745822605580,4.41666536,1806.5,1806.4,0.8412]
[1745822605873,3.64193536,1806.5,1806.4,4.82377]
[1745822606173,3.64193536,1806.5,1806.4,4.049]
[1745822606877,4.41666536,1806.5,1806.4,4.049]
[1745822607180,4.41666536,1806.5,1806.4,3.2078]
[1745822608379,3.64193536,1806.5,1806.1,3.2078]
[1745822608580,0.77483,1806.3,1806.1,3.2078]
[1745822609078,1.5814,1806.3,1806.1,3.98269]
[1745822609679,0.8024,1806.4,1806.2,0.77485]
[1745822609977,0.8024,1806.4,1806.3,0.8105]
[1745822610177,2.4292,1806.4,1806.3,1.58531]
[1745822610373,9.52993536,1806.5,1806.3,1.58531]
[1745822610674,3.64193536,1806.5,1806.4,0.77477]
[1745822619073,3.64193536,1806.5,1806.4,1.56577]
[1745822619579,3.64193536,1806.5,1806.4,3.26037]
[1745822620487,5.32933536,1806.5,1806.4,3.26037]
[1745822621688,5.32933536,1806.5,1806.4,0.77477]
[1745822621888,6.95058536,1806.5,1806.3,3.98258]
[1745822622080,2.48487,1806.4,1806.3,3.2078]
[1745822622282,2.48487,1806.4,1806.3,3.98261]
[1745822622992,1.7101,1806.4,1806.3,3.98261]
[1745822623890,1.7101,1806.4,1806.3,3.2078]
[1745822624288,1.7101,1806.4,1806.3,3.98261]
[1745822624688,1.7101,1806.4,1806.3,5.58271]
[1745822625593,2.48487,1806.4,1806.3,3.2078]
[1745822625887,0.77482,1806.3,1806.1,5.58277]